Workbook

Sheet Лист1 (2)
A1: имт | B1: ln(ИМТ)
A2: 19.70553242 | B2: =LN(A2) -> 2.98089943 | F2: n | G2: =COUNT(A2:A88) -> 87 | H2: =COUNT(B2:B88) -> 87 | I2: или | K2: min | L2: =MIN(A2:A88) -> 15.57093426
A3: 17.99816345 | B3: =LN(A3) -> 2.890269722 | F3: x | G3: =AVERAGE(A2:A88) -> 21.11908625 | H3: =AVERAGE(B2:B88) -> 3.041866978 | I3: =AVERAGE(LN(A2:A88)) -> 3.041866978 | K3: max | L3: =MAX(A2:A88) -> 32.87197232
A4: 23.30668005 | B4: 3.148740017 | F4: s | G4: =STDEV(A2:A88) -> 2.83040653 | H4: =STDEV(B2:B88) -> 0.1279355551 | I4: =STDEV(LN(A2:A88)) -> 0.1279355551 | K4: n' | L4: =MIN(ROUND(SQRT(G2),0),20) -> 9
A5: 19.72318339 | B5: 2.981794766 | F5: D+ | G5: =MAX(RANK(A2:A88,A2:A88,1)/G2-NORMDIST(A2:A88,G3,G4,1)) -> 0.1020272798 | H5: =MAX(RANK(B2:B88,B2:B88,1)/H2-NORMDIST(B2:B88,H3,H4,1)) -> 0.07907802775
A6: 19.72103697 | B6: 2.981685932 | F6: D- | G6: =MAX(NORMDIST(A2:A88,G3,G4,1)-(RANK(A2:A88,A2:A88,1)-1)/G2) -> 0.06315718379 | H6: =MAX(NORMDIST(B2:B88,H3,H4,1)-(RANK(B2:B88,B2:B88,1)-1)/H2) -> 0.04573618751 | K6: =10^-99 -> 1e-99
A7: 18.28989483 | B7: 2.906348712 | F7: D | G7: =MAX(G5:G6) -> 0.1020272798 | H7: =MAX(H5:H6) -> 0.07907802775 | K7: =L2 -> 15.57093426 | L7: =COUNTIFS($A$2:$A$88,">"&K6,$A$2:$A$88,"<="&K7) -> 1 | M7: =(LOGNORMDIST(K7,$H$3,$H$4)-LOGNORMDIST(K6,$H$3,$H$4))*$G$2 -> 0.8912770537
A8: 23.183391 | B8: 3.143436117 | F8: Dcrit(0,95) | G8: =1.36/SQRT(G2) -> 0.1458073047 | H8: =1.36/SQRT(H2) -> 0.1458073047 | K8: =K7+($L$3-$L$2)/$L$4 -> 17.49327182 | L8: =COUNTIFS($A$2:$A$88,">"&K7,$A$2:$A$88,"<="&K8) -> 4 | M8: =(LOGNORMDIST(K8,$H$3,$H$4)-LOGNORMDIST(K7,$H$3,$H$4))*$G$2 -> 6.039246895
A9: 20.54988662 | B9: 3.022855424 | G9: ="нормальность "&IF(G7>G8,"не ","")&"подтверждена" -> нормальность подтверждена | H9: ="нормальность "&IF(H7>H8,"не ","")&"подтверждена" -> нормальность подтверждена | K9: =K8+($L$3-$L$2)/$L$4 -> 19.41560938 | L9: 18 | M9: 17.15018852
A10: 19.84126984 | B10: 2.987764104 | F10: p | G10: 0.304455 | H10: 0.619361 | K10: 21.33794694 | L10: 29 | M10: 24.45299482
A11: 24.02380867 | B11: 3.179045367 | K11: 23.26028451 | L11: 18 | M11: 20.5297056
A12: 19.53125 | B12: 2.972015747 | K12: 25.18262207 | L12: 12 | M12: 11.42312305
A13: 18.55677322 | B13: 2.920834856 | K13: 27.10495963 | L13: 0 | M13: 4.605734211
A14: 18.359375 | B14: 2.910140343 | K14: 29.02729719 | L14: 4 | M14: 1.440541351
A15: 21.62964876 | B15: 3.074065001 | K15: 30.94963476 | L15: 0 | M15: 0.3683932292
A16: 17.95918367 | B16: 2.888101609 | K16: 32.87197232 | L16: 1 | M16: 0.0802541393
A17: 21.14631991 | B17: 3.051465891
A18: 22.15910864 | B18: 3.098248637
A19: 21.87755102 | B19: 3.085461044
A20: 19.86851717 | B20: 2.989136427
A21: 20.65754 | B21: 3.028080386
A22: 23.046875 | B22: 3.137530185
A23: 21.97133586 | B23: 3.089738688
A24: 19.28937927 | B24: 2.959554647
A25: 20.2020202 | B25: 3.005782609
A26: 20.3125 | B26: 3.01123646
A27: 18.90203813 | B27: 2.939269754
A28: 22.65625 | B28: 3.120435752
A29: 16.65306122 | B29: 2.812594057
A30: 19.03114187 | B30: 2.946076683
A31: 15.57093426 | B31: 2.745405988
A32: 27.34375 | B32: 3.308487984
A33: 20.2020202 | B33: 3.005782609
A34: 18.77834467 | B34: 2.932704327
A35: 19.38214469 | B35: 2.964352266
A36: 17.95918367 | B36: 2.888101609
A37: 20.69049454 | B37: 3.029674394
A38: 21.97133586 | B38: 3.089738688
A39: 18.28571429 | B39: 2.906120115
A40: 22.64219297 | B40: 3.119815111
A41: 23.24380165 | B41: 3.146038501
A42: 24.77209671 | B42: 3.209717887
A43: 23.56663223 | B43: 3.159831823
A44: 18.64534404 | B44: 2.925596466
A45: 20.02884153 | B45: 2.997173311
A46: 20.06920415 | B46: 2.999186508
A47: 21.2244898 | B47: 3.055155694
A48: 20.07960128 | B48: 2.999704438
A49: 20.70081674 | B49: 3.030173156
A50: 19.95935549 | B50: 2.99369798
A51: 23.33546614 | B51: 3.149974355
A52: 22.65625 | B52: 3.120435752
A53: 22.94811574 | B53: 3.133235831
A54: 23.29122996 | B54: 3.148076893
A55: 24.8791787 | B55: 3.214031257
A56: 23.0400202 | B56: 3.137232713
A57: 17.30612245 | B57: 2.851060338
A58: 21.41094498 | B58: 3.063902239
A59: 27.6816609 | B59: 3.320770133
A60: 24.09972299 | B60: 3.182200346
A61: 23.56663223 | B61: 3.159831823
A62: 32.87197232 | B62: 3.492620389
A63: 23.53304271 | B63: 3.158405506
A64: 21.36686914 | B64: 3.061841551
A65: 20.76124567 | B65: 3.03308806
A66: 19.46740129 | B66: 2.968741338
A67: 20.2020202 | B67: =LN(A67) -> 3.005782609
A68: 17.68978885 | B68: 2.872987572
A69: 20.66115702 | B69: 3.028255465
A70: 20.51913409 | B70: 3.021357821
A71: 18.75 | B71: 2.931193752
A72: 18.46722068 | B72: 2.915997306
A73: 20.95717116 | B73: 3.042480887
A74: 24.65590962 | B74: 3.205016613
A75: 24.16326531 | B75: 3.184833517
A76: 21.6066482 | B76: 3.073001054
A77: 19.28414901 | B77: 2.959283464
A78: 27.75748722 | B78: 3.323505613
A79: 18.80920625 | B79: 2.934346444
A80: 17.22480372 | B80: 2.846350422
A81: 21.35991456 | B81: 3.061516014
A82: 22.30814991 | B82: 3.104952079
A83: 16.35930993 | B83: 2.79479715
A84: 20.90419501 | B84: 3.039949857
A85: 19.81405274 | B85: 2.98639142
A86: 20.57142857 | B86: 3.023903151
A87: 27.7488727 | B87: 3.323195216
A88: 20.0617284 | B88: 2.99881394

Sheet Лист1 (3)
A1: имт | B1: ln(ИМТ)
A2: 18.49112426 | B2: =LN(A2) -> 2.917290847 | F2: n | G2: =COUNT(A2:A172) -> 171 | H2: =COUNT(B2:B172) -> 171 | I2: или | K2: min | L2: =MIN(A2:A172) -> 15.61570494
A3: 17.89802289 | B3: =LN(A3) -> 2.884690254 | F3: x | G3: =AVERAGE(A2:A172) -> 21.93106695 | H3: =AVERAGE(B2:B172) -> 3.073304975 | I3: =AVERAGE(LN(A2:A172)) -> 3.073304975 | K3: max | L3: =MAX(A2:A172) -> 38.56829803
A4: 20.83070319 | B4: 3.036428013 | F4: s | G4: =STDEV(A2:A172) -> 4.019165398 | H4: =STDEV(B2:B172) -> 0.1664249974 | I4: =STDEV(LN(A2:A172)) -> 0.1664249974 | K4: n' | L4: =MIN(ROUND(SQRT(G2),0),20) -> 13
A5: 25.390625 | B5: 3.234380011 | F5: D+ | G5: =MAX(RANK(A2:A172,A2:A172,1)/G2-NORMDIST(A2:A172,G3,G4,1)) -> 0.1380061737 | H5: =MAX(RANK(B2:B172,B2:B172,1)/H2-NORMDIST(B2:B172,H3,H4,1)) -> 0.09710789173
A6: 26.5831758 | B6: 3.280278527 | F6: D- | G6: =MAX(NORMDIST(A2:A172,G3,G4,1)-(RANK(A2:A172,A2:A172,1)-1)/G2) -> 0.08919008724 | H6: =MAX(NORMDIST(B2:B172,H3,H4,1)-(RANK(B2:B172,B2:B172,1)-1)/H2) -> 0.05759672646 | K6: =10^-99 -> 1e-99
A7: 30.3871053 | B7: 3.414018351 | F7: D | G7: =MAX(G5:G6) -> 0.1380061737 | H7: =MAX(H5:H6) -> 0.09710789173 | K7: =L2 -> 15.61570494 | L7: =COUNTIFS($A$2:$A$172,">"&K6,$A$2:$A$172,"<="&K7) -> 1 | M7: =(LOGNORMDIST(K7,$H$3,$H$4)-LOGNORMDIST(K6,$H$3,$H$4))*$G$2 -> 4.345086316
A8: 22.20598977 | B8: 3.100362062 | F8: Dcrit(0,95) | G8: =1.36/SQRT(G2) -> 0.1040017994 | H8: =1.36/SQRT(H2) -> 0.1040017994 | K8: =K7+($L$3-$L$2)/$L$4 -> 17.38128902 | L8: 9 | M8: 11.93509742
A9: 20.01772999 | B9: 2.99661838 | G9: ="нормальность "&IF(G7>G8,"не ","")&"подтверждена" -> нормальность не подтверждена | H9: ="нормальность "&IF(H7>H8,"не ","")&"подтверждена" -> нормальность подтверждена | K9: =K8+($L$3-$L$2)/$L$4 -> 19.14687311 | L9: 29 | M9: 23.61271206
A10: 24.34380949 | B10: 3.192277587 | F10: p | G10: 0.002652 | H10: 0.074318 | K10: 20.91245719 | L10: 46 | M10: 32.18431939
A11: 19.59183673 | B11: 2.975112986 | K11: 22.67804127 | L11: 34 | M11: 32.86523407
A12: 19.10009183 | B12: 2.949693143 | K12: 24.44362536 | L12: 20 | M12: 26.759336
A13: 20.07960128 | B13: 2.999704438 | K13: 26.20920944 | L13: 10 | M13: 18.20930833
A14: 22.03856749 | B14: 3.092793986 | K14: 27.97479352 | L14: 10 | M14: 10.73625701
A15: 20.56932966 | B15: 3.023801115 | K15: 29.74037761 | L15: 3 | M15: 5.640496275
A16: 19.88385305 | B16: 2.989907998 | K16: 31.50596169 | L16: 3 | M16: 2.699270122
A17: 17.08984375 | B17: 2.838484354 | K17: 33.27154578 | L17: =COUNTIFS($A$2:$A$172,">"&K16,$A$2:$A$172,"<="&K17) -> 1 | M17: =(LOGNORMDIST(K17,$H$3,$H$4)-LOGNORMDIST(K16,$H$3,$H$4))*$G$2 -> 1.197385637
A18: 20.00656932 | B18: 2.996060686 | K18: 35.03712986 | L18: 1 | M18: 0.4993115304
A19: 23.16743024 | B19: 3.142747423 | K19: 36.80271394 | L19: 2 | M19: 0.1979645722
A20: 26.0261749 | B20: 3.259102758 | K20: 38.56829803 | L20: 2 | M20: 0.0753183506
A21: 21.60493827 | B21: 3.072921912
A22: 21.96712018 | B22: 3.089546798
A23: 25.76177285 | B23: 3.248891721
A24: 19.67516685 | B24: 2.979357275
A25: 19.77769867 | B25: 2.984554973
A26: 19.9932847 | B26: 2.995396452
A27: 18.6122449 | B27: 2.923819692
A28: 23.22543185 | B28: 3.145247879
A29: 20.83070319 | B29: 3.036428013
A30: 21.67125803 | B30: 3.075986868
A31: 27.58732606 | B31: 3.317356466
A32: 38.56829803 | B32: 3.652430644
A33: 22.03172568 | B33: 3.092483491
A34: 21.484375 | B34: 3.067325927
A35: 17.96875 | B35: 2.888634138
A36: 22.5710475 | B36: 3.116668001
A37: 26.36560303 | B37: 3.272060245
A38: 20.67901235 | B38: 3.02911929
A39: 17.1875 | B39: 2.844182375
A40: 19.921875 | B40: 2.991818374
A41: 36.24258369 | B41: 3.590234773
A42: 19.6554515 | B42: 2.97835473
A43: 25.60553633 | B43: 3.242808591
A44: 22.37567995 | B44: 3.107974653
A45: 21.67125803 | B45: 3.075986868
A46: 21.10726644 | B46: 3.049617362
A47: 16.52892562 | B47: 2.805111914
A48: 22.10028959 | B48: 3.095590712
A49: 20.98765432 | B49: 3.043934375
A50: 18.82711104 | B50: 2.935297908
A51: 27.81588173 | B51: 3.325607143
A52: 25.84776822 | B52: 3.252224261
A53: 18.80920625 | B53: 2.934346444
A54: 21.67125803 | B54: 3.075986868
A55: 32.60475788 | B55: 3.484458225
A56: 20.57613169 | B56: 3.024131748
A57: 27.06405159 | B57: 3.298206338
A58: 20.67901235 | B58: 3.02911929
A59: 24.77209671 | B59: 3.209717887
A60: 17.57706869 | B60: 2.866595137
A61: 22.49134948 | B61: 3.113130768
A62: 15.61570494 | B62: 2.748277135
A63: 19.10009183 | B63: 2.949693143
A64: 19.9099723 | B64: 2.991220727
A65: 19.36849691 | B65: 2.963647876
A66: 19.72103697 | B66: 2.981685932
A67: 20.90419501 | B67: =LN(A67) -> 3.039949857
A68: 22.75830678 | B68: 3.124930212
A69: 18.59012493 | B69: 2.922630522
A70: 19.33372992 | B70: 2.961851235
A71: 33.41240937 | B71: 3.508927369
A72: 17.63085399 | B72: 2.869650435
A73: 23.29122996 | B73: 3.148076893
A74: 18.78829923 | B74: 2.933234294
A75: 17.21108681 | B75: 2.845553758
A76: 23.14814815 | B76: 3.141914784
A77: 35.23545045 | B77: 3.562052691
A78: 20.22702572 | B78: 3.007019617
A79: 19.15708812 | B79: 2.952672784
A80: 37.63784862 | B80: 3.628010156
A81: 19.46740129 | B81: 2.968741338
A82: 26.75386445 | B82: 3.286678928
A83: 18.82711104 | B83: 2.935297908
A84: 18.90359168 | B84: 2.93935194
A85: 18.5178041 | B85: 2.918732653
A86: 17.05617651 | B86: 2.836512397
A87: 17.99307958 | B87: 2.889987216
A88: 18.90690102 | B88: 2.939526989
A89: 20.41522491 | B89: 3.016280942
A90: 19.49317739 | B90: 2.970064527
A91: 19.48696145 | B91: 2.969745598
A92: 19.46740129 | B92: 2.968741338
A93: 21.30394858 | B93: 3.058892435
A94: 20.54988662 | B94: 3.022855424
A95: 22.49134948 | B95: 3.113130768
A96: 20.43816558 | B96: 3.017404015
A97: 22.5710475 | B97: 3.116668001
A98: 20.65754 | B98: 3.028080386
A99: 19.140625 | B99: 2.95181304
A100: 22.73356401 | B100: 3.123842423
A101: 25.82644628 | B101: 3.251399017
A102: 20.0617284 | B102: 2.99881394
A103: 18.46722068 | B103: 2.915997306
A104: 22.72043837 | B104: 3.123264888
A105: 18.75 | B105: 2.931193752
A106: 19.23356075 | B106: 2.956656709
A107: 18.90359168 | B107: 2.93935194
A108: 24.03460984 | B108: 3.179494868
A109: 20.703125 | B109: 3.030284655
A110: 19.47714681 | B110: 2.96924182
A111: 22.4996371 | B111: 3.11349918
A112: 16.90102758 | B112: 2.827374424
A113: 18.42403628 | B113: 2.913656132
A114: 21.51385851 | B114: 3.068697309
A115: 22.03856749 | B115: 3.092793986
A116: 21.30394858 | B116: 3.058892435
A117: 22.32142857 | B117: 3.10554714
A118: 24.2322212 | B118: 3.187683202
A119: 22.79035793 | B119: 3.126337549
A120: 21.5450908 | B120: 3.070147985
A121: 22.59143813 | B121: 3.117570991
A122: 21.79820239 | B122: 3.081827507
A123: 28.55463173 | B123: 3.351819155
A124: 30.29920465 | B124: 3.411121463
A125: 22.86236854 | B125: 3.129492264
A126: 26.37023814 | B126: 3.272236031
A127: 21.9138057 | B127: 3.087116835
A128: 19.33372992 | B128: 2.961851235
A129: 22.18934911 | B129: 3.099612404
A130: 20.19557823 | B130: 3.005463681
A131: 23.30668005 | B131: =LN(A131) -> 3.148740017
A132: 30.36734694 | B132: 3.413367917
A133: 19.49317739 | B133: 2.970064527
A134: 22.30814991 | B134: 3.104952079
A135: 23.56663223 | B135: 3.159831823
A136: 23.62028791 | B136: 3.162106
A137: 25 | B137: 3.218875825
A138: 21.60493827 | B138: 3.072921912
A139: 24.48979592 | B139: 3.198256538
A140: 17.36044134 | B140: 2.854194132
A141: 22.53061224 | B141: 3.114874929
A142: 17.99307958 | B142: 2.889987216
A143: 19.84126984 | B143: 2.987764104
A144: 20.9572742 | B144: 3.042485803
A145: 22.89281998 | B145: 3.130823323
A146: 19.26530612 | B146: 2.958305868
A147: 18.75 | B147: 2.931193752
A148: 18.59012493 | B148: 2.922630522
A149: 23.50780533 | B149: 3.157332508
A150: 17.7154195 | B150: 2.874435419
A151: 29.33741144 | B151: 3.378863543
A152: 26.88172043 | B152: 3.291446518
A153: 20.30741221 | B153: 3.010985953
A154: 23.03004535 | B154: 3.136799683
A155: 18.16620425 | B155: 2.899562959
A156: 22.94811574 | B156: 3.133235831
A157: 22.23098713 | B157: 3.101487132
A158: 18.59012493 | B158: 2.922630522
A159: 19.60715661 | B159: 2.975894633
A160: 27.47252747 | B160: 3.313186504
A161: 29.3877551 | B161: 3.380578094
A162: 20.04744562 | B162: 2.998101745
A163: 21.84700852 | B163: 3.084064002
A164: 19.36983471 | B164: 2.963716944
A165: 26.31578947 | B165: 3.270169119
A166: 20.76124567 | B166: 3.03308806
A167: 25.0995016 | B167: 3.222847989
A168: 20.41522491 | B168: 3.016280942
A169: 17.87481247 | B169: 2.883392598
A170: 15.75575085 | B170: 2.757205432
A171: 17.30103806 | B171: 2.850766503
A172: 24.03460984 | B172: 3.179494868

Sheet голубая мечта
B3: стомат | C3: леч
A4: µ | B4: ='Лист1 (2)'!I3 -> 3.041866978 | C4: ='Лист1 (3)'!I3 -> 3.073304975
A5: σ | B5: ='Лист1 (2)'!I4 -> 0.1279355551 | C5: ='Лист1 (3)'!I4 -> 0.1664249974
A6: n | B6: ='Лист1 (2)'!H2 -> 87 | C6: ='Лист1 (3)'!H2 -> 171
B7: Стоматологический | C7: Лечебный | G7: Экспериментальные стоматологический | L7: Экспериментальные лечебный
A8: =10^-100 -> 1e-100 | G8: 10 | H8: =COUNTIFS('Лист1 (2)'!$A$2:$A$88,">"&G7,'Лист1 (2)'!$A$2:$A$88,"<="&G8) -> 0 | I8: =H8/$B$6 -> 0 | L8: 10 | M8: =COUNTIFS('Лист1 (3)'!$A$2:$A$172,">"&L7,'Лист1 (3)'!$A$2:$A$172,"<="&L8) -> 0 | N8: =M8/$C$6 -> 0
A9: 0.1 | B9: =(LOGNORMDIST(A9,$B$4,$B$5)-LOGNORMDIST(A8,$B$4,$B$5))*25 -> 0 | C9: =(LOGNORMDIST(A9,$C$4,$C$5)-LOGNORMDIST(A8,$C$4,$C$5))*25 -> 8.148722807e-228 | G9: 12.5 | H9: =COUNTIFS('Лист1 (2)'!$A$2:$A$88,">"&G8,'Лист1 (2)'!$A$2:$A$88,"<="&G9) -> 0 | I9: =H9/$B$6 -> 0 | L9: 12.5 | M9: =COUNTIFS('Лист1 (3)'!$A$2:$A$172,">"&L8,'Лист1 (3)'!$A$2:$A$172,"<="&L9) -> 0 | N9: =M9/$C$6 -> 0
A10: 0.2 | B10: =(LOGNORMDIST(A10,$B$4,$B$5)-LOGNORMDIST(A9,$B$4,$B$5))*25 -> 2.581197931e-288 | C10: =(LOGNORMDIST(A10,$C$4,$C$5)-LOGNORMDIST(A9,$C$4,$C$5))*25 -> 4.289605945e-173 | G10: 15 | H10: =COUNTIFS('Лист1 (2)'!$A$2:$A$88,">"&G9,'Лист1 (2)'!$A$2:$A$88,"<="&G10) -> 0 | I10: 0 | L10: 15 | M10: =COUNTIFS('Лист1 (3)'!$A$2:$A$172,">"&L9,'Лист1 (3)'!$A$2:$A$172,"<="&L10) -> 0 | N10: 0
A11: 0.3 | B11: 2.04986225e-240 | C11: 1.426416661e-144 | G11: 17.5 | H11: =COUNTIFS('Лист1 (2)'!$A$2:$A$88,">"&G10,'Лист1 (2)'!$A$2:$A$88,"<="&G11) -> 5 | I11: 0.05747126437 | L11: 17.5 | M11: =COUNTIFS('Лист1 (3)'!$A$2:$A$172,">"&L10,'Лист1 (3)'!$A$2:$A$172,"<="&L11) -> 10 | N11: 0.05847953216
A12: 0.4 | B12: 4.509062504e-209 | C12: 6.757244542e-126 | G12: 20 | H12: =COUNTIFS('Лист1 (2)'!$A$2:$A$88,">"&G11,'Лист1 (2)'!$A$2:$A$88,"<="&G12) -> 27 | I12: 0.3103448276 | L12: 20 | M12: =COUNTIFS('Лист1 (3)'!$A$2:$A$172,">"&L11,'Лист1 (3)'!$A$2:$A$172,"<="&L12) -> 53 | N12: 0.3099415205
A13: 0.5 | B13: 2.847074514e-186 | C13: 2.651506929e-112 | G13: 22.5 | H13: =COUNTIFS('Лист1 (2)'!$A$2:$A$88,">"&G12,'Лист1 (2)'!$A$2:$A$88,"<="&G13) -> 30 | I13: 0.3448275862 | L13: 22.5 | M13: =COUNTIFS('Лист1 (3)'!$A$2:$A$172,">"&L12,'Лист1 (3)'!$A$2:$A$172,"<="&L13) -> 52 | N13: 0.3040935673
A14: 0.6 | B14: 1.270531614e-168 | C14: 8.951826918e-102 | G14: 25 | H14: =COUNTIFS('Лист1 (2)'!$A$2:$A$88,">"&G13,'Лист1 (2)'!$A$2:$A$88,"<="&G14) -> 20 | I14: 0.2298850575 | L14: 25 | M14: =COUNTIFS('Лист1 (3)'!$A$2:$A$172,">"&L13,'Лист1 (3)'!$A$2:$A$172,"<="&L14) -> 27 | N14: 0.1578947368
A15: 0.7 | B15: 2.184019603e-154 | C15: 2.804035029e-93 | G15: 27.5 | H15: =COUNTIFS('Лист1 (2)'!$A$2:$A$88,">"&G14,'Лист1 (2)'!$A$2:$A$88,"<="&G15) -> 1 | I15: 0.01149425287 | L15: 27.5 | M15: =COUNTIFS('Лист1 (3)'!$A$2:$A$172,">"&L14,'Лист1 (3)'!$A$2:$A$172,"<="&L15) -> 15 | N15: 0.08771929825
A16: 0.8 | B16: 1.450366869e-142 | C16: 3.211945423e-86 | G16: 30 | H16: =COUNTIFS('Лист1 (2)'!$A$2:$A$88,">"&G15,'Лист1 (2)'!$A$2:$A$88,"<="&G16) -> 3 | I16: 0.03448275862 | L16: 30 | M16: =COUNTIFS('Лист1 (3)'!$A$2:$A$172,">"&L15,'Лист1 (3)'!$A$2:$A$172,"<="&L16) -> 5 | N16: 0.02923976608
A17: 0.9 | B17: 1.575078211e-132 | C17: 3.175014375e-80 | G17: 32.5 | H17: =COUNTIFS('Лист1 (2)'!$A$2:$A$88,">"&G16,'Лист1 (2)'!$A$2:$A$88,"<="&G17) -> 0 | I17: 0 | L17: 32.5 | M17: =COUNTIFS('Лист1 (3)'!$A$2:$A$172,">"&L16,'Лист1 (3)'!$A$2:$A$172,"<="&L17) -> 3 | N17: 0.01754385965
A18: 1 | B18: 7.298755162e-124 | C18: 4.792995031e-75 | G18: 35 | H18: =COUNTIFS('Лист1 (2)'!$A$2:$A$88,">"&G17,'Лист1 (2)'!$A$2:$A$88,"<="&G18) -> 1 | I18: 0.01149425287 | L18: 35 | M18: =COUNTIFS('Лист1 (3)'!$A$2:$A$172,">"&L17,'Лист1 (3)'!$A$2:$A$172,"<="&L18) -> 2 | N18: 0.01169590643
A19: 1.1 | B19: 2.813526189e-116 | C19: 1.644117389e-70 | G19: 37.5 | H19: =COUNTIFS('Лист1 (2)'!$A$2:$A$88,">"&G18,'Лист1 (2)'!$A$2:$A$88,"<="&G19) -> 0 | I19: =H19/$B$6 -> 0 | L19: 37.5 | M19: =COUNTIFS('Лист1 (3)'!$A$2:$A$172,">"&L18,'Лист1 (3)'!$A$2:$A$172,"<="&L19) -> 2 | N19: 0.01169590643
A20: 1.2 | B20: 1.461006636e-109 | C20: 1.707446249e-66 | G20: 40 | H20: =COUNTIFS('Лист1 (2)'!$A$2:$A$88,">"&G19,'Лист1 (2)'!$A$2:$A$88,"<="&G20) -> 0 | I20: 0 | L20: 40 | M20: =COUNTIFS('Лист1 (3)'!$A$2:$A$172,">"&L19,'Лист1 (3)'!$A$2:$A$172,"<="&L20) -> 2 | N20: 0.01169590643
A21: 1.3 | B21: 1.462762692e-103 | C21: 6.645915011e-63
A22: 1.4 | B22: 3.711469147e-98 | C22: 1.140868475e-59
A23: 1.5 | B23: 2.952555319e-93 | C23: 9.804069545e-57
A24: 1.6 | B24: 8.717217411e-89 | C24: 4.662944326e-54
A25: 1.7 | B25: 1.094034759e-84 | C25: 1.330684155e-51
A26: 1.8 | B26: 6.519821227e-81 | C26: 2.433665475e-49
A27: 1.9 | B27: 2.021492076e-77 | C27: 3.011853672e-47
A28: 2 | B28: 3.519133777e-74 | C28: 2.639346174e-45
A29: 2.1 | B29: 3.667675723e-71 | C29: 1.701545359e-43
A30: 2.2 | B30: 2.416552805e-68 | C30: 8.336315481e-42
A31: 2.3 | B31: 1.054616536e-65 | C31: 3.191240575e-40
A32: 2.4 | B32: 3.173415923e-63 | C32: 9.777063517e-39
A33: 2.5 | B33: 6.817375615e-61 | C33: 2.447674833e-37
A34: 2.6 | B34: 1.07784548e-58 | C34: 5.09894751e-36
A35: 2.7 | B35: 1.287991454e-56 | C35: 8.980681061e-35
A36: 2.8 | B36: 1.1909191e-54 | C36: 1.356262477e-33
A37: 2.9 | B37: 8.699454744e-53 | C37: 1.778247718e-32
A38: 3 | B38: 5.114113731e-51 | C38: 2.046761174e-31
A39: 3.1 | B39: 2.459717184e-49 | C39: 2.088658448e-30
A40: 3.2 | B40: 9.823364363e-48 | C40: 1.906546642e-29
A41: 3.3 | B41: 3.3012077e-46 | C41: 1.569187556e-28
A42: 3.4 | B42: 9.447909885e-45 | C42: 1.172949775e-27
A43: 3.5 | B43: 2.327913794e-43 | C43: 8.014830417e-27
A44: 3.6 | B44: 4.987108084e-42 | C44: 5.036069074e-26
A45: 3.7 | B45: 9.37301221e-41 | C45: 2.925584397e-25
A46: 3.8 | B46: 1.55817005e-39 | C46: 1.579041735e-24
A47: 3.9 | B47: 2.308390204e-38 | C47: 7.954058762e-24
A48: 4 | B48: 3.068634057e-37 | C48: 3.754825154e-23
A49: 4.1 | B49: 3.683520731e-36 | C49: 1.667409633e-22
A50: 4.2 | B50: 4.015934156e-35 | C50: 6.989752391e-22
A51: 4.3 | B51: 3.99800432e-34 | C51: 2.774890122e-21
A52: 4.4 | B52: 3.652451976e-33 | C52: 1.046371285e-20
A53: 4.5 | B53: 3.076112518e-32 | C53: 3.75817857e-20
A54: 4.6 | B54: 2.398521837e-31 | C54: 1.288929541e-19
A55: 4.7 | B55: 1.738300683e-30 | C55: 4.231269754e-19
A56: 4.8 | B56: 1.175282817e-29 | C56: 1.332477044e-18
A57: 4.9 | B57: 7.438470389e-29 | C57: 4.033558915e-18
A58: 5 | B58: 4.42116342e-28 | C58: 1.175950355e-17
A59: 5.1 | B59: 2.475129456e-27 | C59: 3.307797643e-17
A60: 5.2 | B60: 1.308822739e-26 | C60: 8.99218907e-17
A61: 5.3 | B61: 6.554229653e-26 | C61: 2.366189405e-16
A62: 5.4 | B62: 3.115918452e-25 | C62: 6.035728966e-16
A63: 5.5 | B63: 1.409531253e-24 | C63: 1.494533156e-15
A64: 5.6 | B64: 6.080342578e-24 | C64: 3.596999201e-15
A65: 5.7 | B65: 2.506288677e-23 | C65: 8.424887416e-15
A66: 5.8 | B66: 9.890481841e-23 | C66: 1.922542772e-14
A67: 5.9 | B67: 3.743459334e-22 | C67: 4.27904283e-14
A68: 6 | B68: 1.361256357e-21 | C68: 9.298652901e-14
A69: 6.1 | B69: 4.763417327e-21 | C69: 1.974766058e-13
A70: 6.2 | B70: 1.606467183e-20 | C70: 4.102324557e-13
A71: 6.3 | B71: 5.229096521e-20 | C71: 8.343309109e-13
A72: 6.4 | B72: 1.645041859e-19 | C72: 1.66263126e-12
A73: 6.5 | B73: 5.008246995e-19 | C73: 3.248924597e-12
A74: 6.6 | B74: =(LOGNORMDIST(A74,$B$4,$B$5)-LOGNORMDIST(A73,$B$4,$B$5))*25 -> 1.477362664e-18 | C74: =(LOGNORMDIST(A74,$C$4,$C$5)-LOGNORMDIST(A73,$C$4,$C$5))*25 -> 6.230011931e-12
A75: 6.7 | B75: 4.227544415e-18 | C75: 1.173132207e-11
A76: 6.8 | B76: 1.174818322e-17 | C76: 2.170710929e-11
A77: 6.9 | B77: 3.17389685e-17 | C77: 3.949370735e-11
A78: 7 | B78: 8.344308231e-17 | C78: 7.069444631e-11
A79: 7.1 | B79: 2.136870987e-16 | C79: 1.245725295e-10
A80: 7.2 | B80: 5.335217147e-16 | C80: 2.162097281e-10
A81: 7.3 | B81: 1.299836406e-15 | C81: 3.698021842e-10
A82: 7.4 | B82: 3.092770598e-15 | C82: 6.236198821e-10
A83: 7.5 | B83: 7.192376459e-15 | C83: 1.037365589e-09
A84: 7.6 | B84: 1.6360278e-14 | C84: 1.702946769e-09
A85: 7.7 | B85: 3.642636677e-14 | C85: 2.760037028e-09
A86: 7.8 | B86: 7.944152433e-14 | C86: 4.41827138e-09
A87: 7.9 | B87: 1.698136063e-13 | C87: 6.988513368e-09
A88: 8 | B88: 3.560123152e-13 | C88: 1.092637514e-08
A89: 8.1 | B89: 7.324669007e-13 | C89: 1.689208808e-08
A90: 8.2 | B90: 1.479766829e-12 | C90: 2.583193602e-08
A91: 8.3 | B91: 2.937124337e-12 | C91: 3.908779882e-08
A92: 8.4 | B92: 5.730687731e-12 | C92: 5.854293215e-08
A93: 8.5 | B93: 1.099686229e-11 | C93: 8.681394577e-08
A94: 8.6 | B94: 2.076451787e-11 | C94: 1.275010493e-07
A95: 8.7 | B95: 3.859854284e-11 | C95: 1.855110116e-07
A96: 8.8 | B96: 7.066639347e-11 | C96: 2.674699212e-07
A97: 8.9 | B97: 1.274785932e-10 | C97: 3.82245718e-07
A98: 9 | B98: 2.266866966e-10 | C98: 5.416035566e-07
A99: 9.1 | B99: 3.97515871e-10 | C99: 7.610203054e-07
A100: 9.2 | B100: 6.876876878e-10 | C100: 1.060687813e-06
A101: 9.3 | B101: 1.174082951e-09 | C101: 1.4667379e-06
A102: 9.4 | B102: 1.978944123e-09 | C102: 2.012725247e-06
A103: 9.5 | B103: 3.294172045e-09 | C103: 2.741407319e-06
A104: 9.6 | B104: 5.417293598e-09 | C104: 3.706863071e-06
A105: 9.7 | B105: 8.804039828e-09 | C105: 4.976994246e-06
A106: 9.8 | B106: 1.414426508e-08 | C106: 6.636454411e-06
A107: 9.9 | B107: 2.247025745e-08 | C107: 8.790051405e-06
A108: 10 | B108: 3.530945184e-08 | C108: 1.156666827e-05
A109: 10.1 | B109: 5.489728192e-08 | C109: 1.512374602e-05
A110: 10.2 | B110: 8.44705241e-08 | C110: 1.965236831e-05
A111: 10.3 | B111: 1.286671259e-07 | C111: 2.538298369e-05
A112: 10.4 | B112: 1.940652927e-07 | C112: 3.259179451e-05
A113: 10.5 | B113: 2.899026403e-07 | C113: 4.160783375e-05
A114: 10.6 | B114: 4.290255789e-07 | C114: 5.28207414e-05
A115: 10.7 | B115: 6.291298209e-07 | C115: 6.668924022e-05
A116: 10.8 | B116: 9.143649765e-07 | C116: 8.375029796e-05
A117: 10.9 | B117: 1.317389528e-06 | C117: 0.000104628948
A118: 11 | B118: 1.881976887e-06 | C118: 0.0001300487247
A119: 11.1 | B119: 2.666288453e-06 | C119: 0.0001608426509
A120: 11.2 | B120: 3.746945213e-06 | C120: 0.0001979646999
A121: 11.3 | B121: 5.224044956e-06 | C121: 0.0002425016309
A122: 11.4 | B122: 7.227286943e-06 | C122: 0.0002956850813
A123: 11.5 | B123: 9.923379143e-06 | C123: 0.0003589037784
A124: 11.6 | B124: 1.3524914e-05 | C124: 0.0004337157146
A125: 11.7 | B125: 1.830090612e-05 | C125: 0.0005218601141
A126: 11.8 | B126: 2.458918826e-05 | C126: 0.000625269
A127: 11.9 | B127: 3.281085933e-05 | C127: 0.0007460781608
A128: 12 | B128: 4.348696866e-05 | C128: 0.0008866372993
A129: 12.1 | B129: 5.725760374e-05 | C129: 0.001049519142
A130: 12.2 | B130: 7.490352217e-05 | C130: 0.001237527276
A131: 12.3 | B131: 9.737043325e-05 | C131: 0.001453702491
A132: 12.4 | B132: 0.000125795988 | C132: 0.001701327376
A133: 12.5 | B133: 0.0001615394798 | C133: 0.001983928977
A134: 12.6 | B134: 0.0002062141913 | C134: 0.002305279267
A135: 12.7 | B135: 0.000261722242 | C135: 0.002669393255
A136: 12.8 | B136: 0.0003302917093 | C136: 0.003080524537
A137: 12.9 | B137: 0.0004145156931 | C137: 0.003543158126
A138: 13 | B138: =(LOGNORMDIST(A138,$B$4,$B$5)-LOGNORMDIST(A137,$B$4,$B$5))*25 -> 0.0005173928978 | C138: =(LOGNORMDIST(A138,$C$4,$C$5)-LOGNORMDIST(A137,$C$4,$C$5))*25 -> 0.004062000443
A139: 13.1 | B139: 0.0006423691933 | C139: 0.004641966341
A140: 13.2 | B140: 0.0007933795129 | C140: 0.005288163108
A141: 13.3 | B141: 0.0009748893332 | C141: 0.006005871405
A142: 13.4 | B142: 0.001191934881 | C142: 0.00680052313
A143: 13.5 | B143: 0.001450161114 | C143: 0.007677676272
A144: 13.6 | B144: 0.001755856447 | C144: 0.008642986801
A145: 13.7 | B145: 0.002115983099 | C145: 0.009702177749
A146: 13.8 | B146: 0.00253820194 | C146: 0.01086100562
A147: 13.9 | B147: 0.003030890612 | C147: 0.01212522432
A148: 14 | B148: 0.003603153777 | C148: 0.0135005469
A149: 14.1 | B149: 0.004264824311 | C149: 0.01499260531
A150: 14.2 | B150: 0.005026454329 | C150: 0.01660690854
A151: 14.3 | B151: 0.005899295043 | C151: 0.01834879942
A152: 14.4 | B152: 0.006895264518 | C152: 0.02022341052
A153: 14.5 | B153: 0.008026902584 | C153: 0.02223561944
A154: 14.6 | B154: 0.009307312307 | C154: 0.02439000404
A155: 14.7 | B155: 0.01075008763 | C155: 0.02669079778
A156: 14.8 | B156: 0.01236922706 | C156: 0.02914184594
A157: 14.9 | B157: 0.01417903338 | C157: 0.03174656274
A158: 15 | B158: 0.01619399993 | C158: 0.03450789016
A159: 15.1 | B159: 0.01842868381 | C159: 0.03742825861
A160: 15.2 | B160: 0.02089756718 | C160: 0.04050954996
A161: 15.3 | B161: 0.02361490755 | C161: 0.04375306332
A162: 15.4 | B162: 0.0265945787 | C162: 0.04715948386
A163: 15.5 | B163: 0.02984990374 | C163: 0.05072885509
A164: 15.6 | B164: 0.03339348239 | C164: 0.05446055481
A165: 15.7 | B165: 0.03723701442 | C165: 0.05835327509
A166: 15.8 | B166: 0.04139112156 | C166: 0.06240500639
A167: 15.9 | B167: 0.04586517044 | C167: 0.06661302616
A168: 16 | B168: 0.05066709885 | C168: 0.07097389192
A169: 16.1 | B169: 0.055803248 | C169: 0.07548343903
A170: 16.2 | B170: 0.06127820334 | C170: 0.08013678312
A171: 16.3 | B171: 0.0670946464 | C171: 0.08492832733
A172: 16.4 | B172: 0.07325322009 | C172: 0.08985177414
A173: 16.5 | B173: 0.07975240986 | C173: 0.09490014193
A174: 16.6 | B174: 0.08658844265 | C174: 0.100065786
A175: 16.7 | B175: 0.09375520573 | C175: 0.1053404239
A176: 16.8 | B176: 0.101244187 | C176: 0.1107151652
A177: 16.9 | B177: 0.1090444378 | C177: 0.1161805447
A178: 17 | B178: 0.1171425605 | C178: 0.12172656
A179: 17.1 | B179: 0.1255227193 | C179: 0.1273427117
A180: 17.2 | B180: 0.1341666775 | C180: 0.1330180476
A181: 17.3 | B181: 0.1430538587 | C181: 0.1387412089
A182: 17.4 | B182: 0.1521614333 | C182: 0.1445004791
A183: 17.5 | B183: 0.1614644289 | C183: 0.1502838351
A184: 17.6 | B184: 0.1709358638 | C184: 0.1560789997
A185: 17.7 | B185: 0.180546902 | C185: 0.1618734957
A186: 17.8 | B186: 0.1902670288 | C186: 0.1676547005
A187: 17.9 | B187: 0.200064244 | C187: 0.1734099017
A188: 18 | B188: 0.2099052722 | C188: 0.1791263524
A189: 18.1 | B189: 0.2197557854 | C189: 0.1847913268
A190: 18.2 | B190: 0.2295806388 | C190: 0.1903921744
A191: 18.3 | B191: 0.2393441135 | C191: 0.1959163744
A192: 18.4 | B192: 0.2490101668 | C192: 0.2013515875
A193: 18.5 | B193: 0.2585426845 | C193: 0.2066857074
A194: 18.6 | B194: 0.2679057348 | C194: 0.2119069096
A195: 18.7 | B195: 0.2770638196 | C195: 0.2170036982
A196: 18.8 | B196: 0.2859821209 | C196: 0.2219649506
A197: 18.9 | B197: 0.2946267404 | C197: 0.2267799593
A198: 19 | B198: 0.3029649293 | C198: 0.231438471
A199: 19.1 | B199: 0.3109653063 | C199: 0.235930723
A200: 19.2 | B200: 0.3185980614 | C200: 0.2402474755
A201: 19.3 | B201: 0.325835145 | C201: 0.2443800424
A202: 19.4 | B202: =(LOGNORMDIST(A202,$B$4,$B$5)-LOGNORMDIST(A201,$B$4,$B$5))*25 -> 0.3326504392 | C202: =(LOGNORMDIST(A202,$C$4,$C$5)-LOGNORMDIST(A201,$C$4,$C$5))*25 -> 0.2483203168
... 206 more rows
